fUST/lending_fUST_20250428
["ID","MTS","AMOUNT","RATE_DAILY","PERIOD"]
[359195246,1745803753696,-200.0,0.0002125,2]
[359195247,1745803753715,-200.0,0.0002125,2]
[359195248,1745803753735,-200.0,0.0002125,2]
[359195249,1745803753754,-500.0,0.00021293,2]
[359195250,1745803753773,-300.0,0.00021293,2]
[359195251,1745803753792,-500.0,0.00021293,2]
[359195252,1745803753811,-496.54702232,0.00021293,2]
[359195253,1745803753831,-500.0,0.00021293,2]
[359195254,1745803753852,-156.68,0.00021519,2]
[359195255,1745803753873,-400.0,0.0002152,2]
[359195256,1745803753893,-400.0,0.0002152,2]
[359195257,1745803753918,-400.0,0.00021522,2]
[359195258,1745803753939,-400.0,0.00021794,2]
[359195259,1745803753961,-400.0,0.00021794,2]
[359195260,1745803753982,-400.0,0.00021796,2]
[359195261,1745803754004,-174.95,0.00022068,2]
[359195262,1745803754025,-400.0,0.00022068,2]
[359195263,1745803754045,-400.0,0.0002207,2]
[359195264,1745803754066,-400.0,0.00022342,2]
[359195265,1745803754186,-247.88,0.00022344,2]
[359195266,1745803754263,-420.0,0.0002252,2]
[359195267,1745803754285,-388.33,0.00022616,2]
[359195268,1745803754304,-600.0,0.00022937,2]
[359195269,1745803755174,500.0,0.00020702,2]
[359195270,1745803755641,500.0,0.000207,2]
[359195278,1745803759494,500.0,0.00020697,2]
[359195279,1745803759836,400.0,0.000207,2]
[359195280,1745803760097,400.0,0.00020974,2]
[359195281,1745803760151,400.0,0.00020698,2]
[359195282,1745803760358,400.0,0.00021248,2]
[359195283,1745803760398,400.0,0.00020972,2]
[359195284,1745803760605,400.0,0.00021522,2]
[359195285,1745803760641,218.16,0.00021246,2]
[359195286,1745803760848,400.0,0.00021796,2]
[359195287,1745803761106,213.28,0.0002207,2]
[359195288,1745803761267,184.85136613,0.00020697,2]
[359195289,1745803767368,500.0,0.00020698,2]
[359195290,1745803772910,160.0,0.00020974,2]
[359195294,1745803784389,400.0,0.000207,2]
[359195295,1745803784635,400.0,0.00020974,2]
[359195296,1745803784889,200.0,0.00021248,2]
[359195297,1745803787197,400.0,0.00020697,2]
[359195298,1745803787437,77.67686407,0.00020971,2]
[359195299,1745803787458,156.02510824,0.00020971,2]
[359195300,1745803787481,166.29802769,0.00020971,2]
[359195301,1745803787670,400.0,0.00021245,2]
[359195302,1745803787949,399.05305905,0.00021519,2]
[359195303,1745803787972,0.94694095,0.00021519,2]
[359195304,1745803788205,166.48,0.00021793,2]
[359195305,1745803790335,400.0,0.000207,2]
[359195306,1745803790600,382.11883017,0.00020974,2]
[359195369,1745803832207,-500.0,0.00020697,2]
[359195370,1745803832217,-400.0,0.000207,2]
[359195371,1745803832226,-400.0,0.000207,2]
[359195372,1745803832236,-400.0,0.000207,2]
[359195373,1745803832246,-400.0,0.000207,2]
[359195374,1745803832255,-400.0,0.000207,2]
[359195375,1745803832265,-400.0,0.000207,2]
[359195376,1745803832274,-400.0,0.000207,2]
[359195377,1745803832283,-17.88116983,0.00020974,2]
[359195378,1745803832294,-400.0,0.00020974,2]
[359195379,1745803832304,-75.990624,0.00020974,2]
[359195380,1745803832316,-352.17343067,0.00020974,2]
[359195381,1745803832327,-482.17328622,0.00020974,2]
[359195382,1745803832339,-11668.93148535,0.00020974,2]
[359195385,1745803832349,-400.0,0.00020974,2]
[359195387,1745803832357,-163.73376382,0.00020974,2]
[359195390,1745803832366,-400.0,0.00020974,2]
[359195393,1745803832375,-349.99756575,0.00020974,2]
[359195396,1745803832385,-400.0,0.00020974,2]
[359195397,1745803832394,-408.69373305,0.00020974,2]
[359195398,1745803832405,-200.0,0.00021248,2]
[359195399,1745803832414,-208.05199365,0.00021248,2]
[359195400,1745803832423,-209.14168353,0.00021248,2]
[359195401,1745803832433,-214.15684933,0.00021248,2]
[359195402,1745803832442,-214.2433774,0.00021248,2]
[359195403,1745803832452,-403.65035217,0.000219,3]
[359195404,1745803832461,-403.65035211,0.00022521,4]
[359195405,1745803832470,-403.65035211,0.00023141,4]
[359195406,1745803832480,-403.65035211,0.00023762,4]
[359195407,1745803832490,-403.65035211,0.00024383,5]
[359195408,1745803832499,-1242.38,0.00025,2]
[359195409,1745803832508,-403.65035211,0.00025003,5]
[359195410,1745803832518,-403.65035211,0.00025624,6]
[359195411,1745803832529,-1655.41841223,0.00026,30]
[359195412,1745803832539,-500.0,0.00026164,7]
[359195413,1745803832549,-403.65035211,0.00026245,6]
[359195414,1745803832561,-1000.0,0.00026486,2]
[359195415,1745803832570,-300.0,0.00026771,2]
[359195416,1745803832579,-403.65035211,0.00026866,7]
[359195417,1745803832589,-313.23359267,0.00027,3]
[359195418,1745803832604,-400.0,0.00027396,2]
[359195419,1745803832613,-500.0,0.00027396,2]
[359195420,1745803832623,-400.0,0.00027396,2]
[359195421,1745803832632,-400.0,0.00027396,2]
[359195422,1745803832642,-400.0,0.00027396,2]
[359195423,1745803832652,-500.0,0.00027396,2]
[359195424,1745803832662,-400.0,0.00027396,2]
[359195425,1745803832671,-500.0,0.00027396,2]
[359195426,1745803832680,-500.0,0.00027396,2]
[359195427,1745803832690,-500.0,0.00027396,2]
[359195428,1745803832700,-566.15,0.00027396,2]
[359195429,1745803832710,-500.0,0.00027396,2]
[359195430,1745803832719,-400.0,0.00027396,2]
[359195431,1745803832730,-500.0,0.00027396,2]
[359195432,1745803832739,-500.0,0.00027396,2]
[359195433,1745803832748,-500.0,0.00027396,2]
[359195434,1745803832758,-500.0,0.00027396,2]
[359195435,1745803832768,-500.0,0.00027396,2]
[359195436,1745803832777,-400.0,0.00027396,2]
[359195437,1745803832787,-500.0,0.00027396,2]
[359195438,1745803832796,-400.0,0.00027396,2]
[359195439,1745803832805,-266.47264918,0.00027396,2]
[359195440,1745803832815,-507.59523474,0.00027396,2]
[359195441,1745803832824,-400.0,0.00027396,2]
[359195442,1745803832833,-507.03921415,0.00027396,2]
[359195443,1745803832842,-508.10256976,0.00027396,2]
[359195444,1745803832852,-400.0,0.00027396,2]
[359195445,1745803832861,-504.92224426,0.00027396,2]
[359195446,1745803832871,-510.87878445,0.00027396,2]
[359195447,1745803832880,-507.90649231,0.00027396,2]
[359195448,1745803832889,-500.0,0.00027397,2]
[359195449,1745803832899,-6250.0,0.00027397,120]
[359195450,1745803832908,-500.0,0.00027397,5]
[359195451,1745803832918,-500.0,0.00027424,2]
[359195452,1745803832927,-500.0,0.00027452,2]
[359195453,1745803832941,-500.0,0.00027479,2]
[359195454,1745803832951,-403.65035211,0.00027486,7]
[359195455,1745803832961,-500.0,0.00027507,2]
[359195456,1745803832972,-500.0,0.00027534,2]
[359195457,1745803832984,-500.0,0.00027561,2]
[359195458,1745803832994,-500.0,0.00027589,2]
[359195459,1745803833003,-647.90842979,0.00027616,2]
[359195460,1745803833015,-400.0,0.0002767,2]
[359195461,1745803833025,-400.0,0.0002767,2]
[359195462,1745803833035,-400.0,0.0002767,2]
[359195463,1745803833045,-400.0,0.0002767,2]
[359195464,1745803833055,-400.0,0.0002767,2]
[359195465,1745803833065,-566.15,0.0002767,2]
[359195466,1745803833075,-400.0,0.0002767,2]
[359195467,1745803833085,-400.0,0.0002767,2]
[359195468,1745803833095,-400.0,0.0002767,2]
[359195469,1745803833104,-254.37880479,0.0002767,2]
[359195470,1745803833114,-400.0,0.0002767,2]
[359195471,1745803833123,-500.0,0.00027808,7]
[359195472,1745803833133,-173.6008034,0.00027844,2]
[359195473,1745803833143,-200.0,0.00027944,2]
[359195474,1745803833153,-200.0,0.00027944,2]
[359195475,1745803833162,-400.0,0.00027944,2]
[359195476,1745803833172,-200.0,0.00027944,2]
[359195477,1745803833183,-400.0,0.00027944,2]
[359195478,1745803833192,-566.15,0.00027944,2]
[359195479,1745803833202,-400.0,0.00027944,2]
[359195480,1745803833211,-517.55,0.00027944,2]
[359195481,1745803833221,-400.0,0.00027944,2]
[359195482,1745803833232,-400.0,0.00027944,2]
[359195483,1745803833241,-403.65035211,0.00028107,7]
[359195484,1745803833251,-400.0,0.00028218,2]
[359195485,1745803833260,-400.0,0.00028218,2]
[359195486,1745803833270,-566.15,0.00028218,2]
[359195487,1745803833279,-155.7,0.00028218,2]
[359195488,1745803833290,-272.82479158,0.00028218,2]
[359195489,1745803833300,-231.13339533,0.00028218,2]
[359195490,1745803833310,-400.0,0.00028492,2]
[359195491,1745803833319,-400.0,0.00028492,2]
[359195492,1745803833329,-566.15,0.00028492,2]
[359195493,1745803833338,-1960.2923528,0.000285,4]
[359195494,1745803833349,-403.65035211,0.00028728,8]
[359195495,1745803833359,-400.0,0.00028766,2]
[359195496,1745803833368,-540.19,0.00028766,2]
[359195497,1745803833378,-566.15,0.00028766,2]
[359195498,1745803833387,-420.0,0.0002895,2]
[359195499,1745803833397,-400.0,0.0002904,2]
[359195500,1745803833406,-566.15,0.0002904,2]
[359195501,1745803833416,-429.72,0.00029314,2]
[359195502,1745803833426,-566.15,0.00029314,2]
[359195503,1745803833435,-403.65035211,0.00029348,8]
[359195504,1745803833445,-500.0,0.00029452,7]
[359195505,1745803833455,-566.15,0.00029588,2]
[359195506,1745803833465,-566.15,0.00029862,2]
[359195507,1745803833475,-403.65035211,0.00029969,9]
[359195508,1745803833485,-500.0,0.00029973,5]
[359195509,1745803833495,-300.0,0.00029973,5]
[359195510,1745803833504,-500.0,0.00029973,5]
[359195511,1745803833513,-984.39557,0.00029988,2]
[359195512,1745803833522,-154.6640074,0.00029989,2]
[359195513,1745803833532,-526.78758978,0.00029989,2]
[359195514,1745803833541,-191.43170763,0.00029989,2]
[359195515,1745803833551,-77827.455743,0.0002999,2]
[359195516,1745803835083,-10205.253377,0.0002999,2]
[359195517,1745803835098,-349.23879933,0.0002999,2]
[359195518,1745803835109,-3680.15334109,0.0002999,2]
[359195584,1745803840440,-400.0,0.000207,2]
[359195585,1745803840450,-400.0,0.00020974,2]
[359195586,1745803840459,-205.39503022,0.00021248,2]
[359195587,1745803840469,-507.08384761,0.00027395,2]
[359195588,1745803840478,-520.23529892,0.00027396,2]
[359195589,1745803840489,-505.66771715,0.00027396,2]
[359195590,1745803840498,-545.37264254,0.00027396,2]
[359195591,1745803840507,-502.56527256,0.00027396,2]
[359195592,1745803840518,-400.0,0.00027396,2]
[359195593,1745803840528,-400.0,0.0002767,2]
[359195594,1745803840539,-400.0,0.00027944,2]
[359195596,1745803840548,-227.2229766,0.00028218,2]
[359195597,1745803840558,-1569.4918547,0.000285,4]
[359195598,1745803840567,-157.16335624,0.000294,7]
[359195599,1745803840578,-550.82094679,0.000299,3]
[359195600,1745803840590,-2019.58105667,0.0002999,2]
[359195609,1745803841454,-129619.631195,0.0002999,2]
[359195610,1745803841466,-340.79646012,0.0002999,2]
[359195611,1745803841477,-11999.17921095,0.0002999,2]
[359195612,1745803841492,-10573.00015152,0.0002999,2]
[359195613,1745803841503,-4655.0,0.0002999,2]
[359195614,1745803841524,-84114.338467,0.0002999,2]
[359195615,1745803841535,-630.00346957,0.0002999,2]
[359195616,1745803841546,-2554.96625908,0.0002999,2]
[359195617,1745803841557,-3155.5770056,0.0002999,2]
[359195618,1745803841568,-350813.52135707,0.0002999,2]
[359195619,1745803841577,-11367.5427307,0.0002999,2]
[359195620,1745803841587,-268834.43055777,0.0003,90]
[359195621,1745803841597,-4196.41868098,0.0003,90]
[359195622,1745803841608,-1287.62831868,0.0003,90]
[359195623,1745803841619,-549.25788959,0.0003,90]
[359195624,1745803841670,-8765.166976,0.0003,90]
[359195625,1745803841681,-44019.52312513,0.0003,90]
[359195626,1745803841692,-2659.3832765,0.0003,90]
[359195627,1745803841703,-1867.854828,0.0003,90]
[359195628,1745803841714,-926.16886866,0.0003,90]
[359195629,1745803841725,-148251.92030131,0.0003,90]
[359195671,1745803843226,-189881.48072092,0.0003,90]
[359195672,1745803843236,-15549.919352,0.0003,90]
[359195673,1745803843246,-49086.36150096,0.0003,7]
[359195674,1745803843255,-2000.0,0.0003,3]
[359195675,1745803843264,-2000.0,0.0003,3]
[359195676,1745803843273,-2000.0,0.0003,3]
[359195677,1745803843282,-2000.0,0.0003,3]
[359195678,1745803843291,-2000.0,0.0003,3]
[359195679,1745803843300,-2000.0,0.0003,3]
[359195681,1745803843309,-2000.0,0.0003,3]
[359195683,1745803843319,-2000.0,0.0003,3]
[359195685,1745803843329,-2000.0,0.0003,3]
[359195687,1745803843339,-2000.0,0.0003,3]
[359195689,1745803843348,-2000.0,0.0003,3]
[359195690,1745803843358,-2000.0,0.0003,3]
[359195691,1745803843367,-2000.0,0.0003,3]
[359195692,1745803843375,-2000.0,0.0003,3]
[359195693,1745803843384,-2000.0,0.0003,3]
[359195694,1745803843393,-2000.0,0.0003,3]
[359195695,1745803843402,-2000.0,0.0003,3]
[359195697,1745803843411,-2000.0,0.0003,3]
[359195698,1745803843420,-2000.0,0.0003,3]
[359195701,1745803843430,-2000.0,0.0003,3]
[359195702,1745803843439,-2000.0,0.0003,3]
[359195703,1745803843448,-2000.0,0.0003,3]
[359195704,1745803843457,-2000.0,0.0003,3]
[359195705,1745803843466,-151.0,0.0003,7]
[359195706,1745803843475,-151.0,0.0003,7]
[359195707,1745803843485,-151.0,0.0003,7]
[359195708,1745803843495,-186.497797,0.0003,7]
[359195709,1745803843505,-151.0,0.0003,7]
[359195710,1745803843514,-247.5113,0.0003,7]
[359195711,1745803843523,-177.454024,0.0003,7]
[359195712,1745803843533,-151.0,0.0003,7]
[359195713,1745803843543,-202.162351,0.0003,7]
[359195714,1745803843553,-151.0,0.0003,7]
[359195715,1745803843562,-473.941809,0.0003,2]
[359195716,1745803843571,-157.657267,0.0003,7]
[359195717,1745803843580,-473.941809,0.0003,2]
[359195718,1745803843590,-151.0,0.0003,7]
[359195719,1745803843600,-151.0,0.0003,7]
[359195721,1745803843610,-151.0,0.0003,7]
[359195723,1745803843619,-151.0,0.0003,7]
[359195724,1745803843628,-151.0,0.0003,2]
[359195726,1745803843638,-218.150039,0.0003,2]
[359195727,1745803843648,-268.0,0.0003,2]
[359195728,1745803843657,-1500.0,0.0003,2]
[359195729,1745803843667,-254.858,0.0003,2]
[359195730,1745803843676,-751.0,0.0003,2]
[359195731,1745803843685,-173.6008034,0.00030127,2]
[359195732,1745803843695,-566.15,0.00030136,2]
[359195733,1745803843703,-200.61961368,0.00030137,2]
[359195734,1745803843713,-2000.0,0.00030137,120]
[359195735,1745803843722,-200.0,0.00030207,120]
[359195736,1745803843732,-160.0,0.000303,32]
[359195737,1745803843743,-566.15,0.0003041,2]
[359195738,1745803843753,-500.0,0.00030502,5]
[359195739,1745803843763,-1000.0,0.00030502,5]
[359195740,1745803843772,-1000.0,0.00030521,5]
[359195741,1745803843782,-200.0,0.00030543,120]
[359195742,1745803843791,-204.85384905,0.00030567,2]
[359195743,1745803843800,-403.65035211,0.0003059,9]
[359195744,1745803843810,-200.0,0.00030597,120]
[359195745,1745803843819,-200.0,0.000306,120]
[359195746,1745803843828,-200.0,0.000306,120]
[359195747,1745803843838,-566.15,0.00030684,2]
[359195748,1745803843848,-2000.0,0.00030685,120]
[359195749,1745803843857,-2000.0,0.00030685,120]
[359195750,1745803843867,-200.0,0.00030755,120]
[359195751,1745803843877,-566.15,0.00030958,2]
[359195752,1745803843887,-200.0,0.00030983,120]
[359195753,1745803843897,-301.44223231,0.0003099,2]
[359195754,1745803843906,-1420.94284134,0.0003099,2]
[359195755,1745803843915,-160.0,0.00031,34]
[359195757,1745803843926,-108304.53028721,0.00031,120]
[359195758,1745803843938,-151.0,0.00031,7]
[359195759,1745803843950,-151.0,0.00031,7]
[359195760,1745803843959,-473.941809,0.00031,2]
[359195761,1745803843969,-473.941809,0.00031,2]
[359195762,1745803843979,-151.0,0.00031,7]
[359195763,1745803843989,-151.0,0.00031,7]
[359195764,1745803843999,-313.23359267,0.00031,120]
[359195765,1745803844008,-151.0,0.00031,2]
[359195766,1745803844017,-153.0,0.00031009,30]
[359195767,1745803844028,-153.0,0.00031009,30]
[359195768,1745803844039,-153.0,0.00031009,30]
[359195769,1745803844049,-153.0,0.00031009,30]
[359195770,1745803844059,-153.0,0.00031009,30]
[359195771,1745803844069,-153.793413,0.00031009,30]
[359195772,1745803844078,-500.0,0.00031096,7]
[359195773,1745803844088,-200.0,0.00031146,120]
[359195774,1745803844097,-296.188,0.00031165,2]
[359195775,1745803844107,-403.65035211,0.0003121,9]
[359195776,1745803844116,-566.15,0.00031232,2]
[359195777,1745803844232,-2000.0,0.00031233,120]
[359195778,1745803844242,-2000.0,0.00031233,120]
[359195779,1745803844251,-204.85384905,0.00031233,2]
[359195780,1745803844261,-160.0,0.000313,35]
[359195781,1745803844270,-1420.94284134,0.00031431,2]
[359195782,1745803844279,-188974.59383892,0.00031441,5]
[359195783,1745803844288,-151.0,0.00031441,7]
[359195784,1745803844297,-151.0,0.00031441,7]
[359195785,1745803844306,-151.0,0.00031441,2]
[359195786,1745803844316,-566.15,0.00031506,2]
[359195787,1745803844325,-600.0,0.00031616,5]
[359195788,1745803844335,-151.0,0.00031629,7]
[359195789,1745803844345,-151.0,0.00031629,7]
[359195790,1745803844355,-473.941809,0.00031629,2]
[359195791,1745803844365,-473.941809,0.00031629,2]
[359195792,1745803844374,-5000.0,0.00031629,2]
[359195793,1745803844383,-200.0,0.00031647,120]
[359195794,1745803844392,-566.15,0.0003178,2]
[359195795,1745803844401,-2000.0,0.00031781,120]
[359195796,1745803844410,-2000.0,0.00031781,120]
[359195797,1745803844419,-153.0,0.00031831,30]
[359195798,1745803844428,-153.0,0.00031831,30]
[359195799,1745803844438,-153.0,0.00031831,30]
[359195800,1745803844447,-153.0,0.00031831,30]
[359195801,1745803844457,-153.0,0.00031831,30]
[359195802,1745803844467,-306.0,0.00031831,30]
[359195803,1745803844476,-153.0,0.00031831,30]
[359195804,1745803844486,-153.0,0.00031831,30]
[359195805,1745803844496,-153.0,0.00031831,30]
[359195806,1745803844505,-153.0,0.00031831,30]
[359195807,1745803844514,-153.0,0.00031831,30]
[359195808,1745803844524,-306.0,0.00031831,30]
[359195809,1745803844533,-153.0,0.00031831,30]
[359195810,1745803844543,-153.0,0.00031831,30]
[359195811,1745803844552,-153.0,0.00031831,30]
[359195812,1745803844561,-403.65035211,0.00031831,10]
[359195813,1745803844570,-200.0,0.00031836,120]
[359195814,1745803844580,-204.85384905,0.000319,2]
[359195815,1745803844589,-6250.0,0.00031963,120]
[359195816,1745803844598,-254.858,0.00031987,2]
[359195817,1745803844607,-500.0,0.00032,14]
[359195818,1745803844616,-1000.0,0.00032,120]
[359195819,1745803844625,-160.0,0.00032,37]
[359195820,1745803844634,-566.15,0.00032054,2]
[359195821,1745803844643,-200.0,0.00032276,120]
[359195822,1745803844652,-200.0,0.000323,120]
[359195824,1745803844662,-200.0,0.000323,120]
[359195825,1745803844671,-160.0,0.000323,38]
[359195826,1745803844680,-566.15,0.00032328,2]
[359195827,1745803844689,-2000.0,0.00032329,120]
[359195828,1745803844698,-2000.0,0.00032329,120]
[359195829,1745803844707,-173.6008034,0.00032411,2]
[359195830,1745803844717,-403.65035211,0.00032452,10]
[359195831,1745803844726,-204.85384905,0.00032567,2]
[359195832,1745803844735,-566.15,0.00032602,2]
[359195833,1745803844745,-153.0,0.00032653,30]
[359195834,1745803844754,-153.0,0.00032653,30]
[359195836,1745803844763,-153.0,0.00032653,30]
[359195837,1745803844773,-155.0,0.00032723,2]
[359195838,1745803844783,-500.0,0.0003274,7]
[359195839,1745803844792,-200.0,0.00032863,120]
[359195840,1745803844802,-500.0,0.00032876,120]
[359195841,1745803844811,-500.0,0.00032876,120]
[359195842,1745803844821,-500.0,0.00032876,120]
[359195843,1745803844831,-599.02234048,0.00032876,120]
[359195844,1745803844841,-1000.0,0.00032876,20]
[359195845,1745803844850,-1000.0,0.00032876,20]
[359195846,1745803844860,-1000.0,0.00032876,20]
[359195847,1745803844870,-1000.0,0.00032876,20]
[359195848,1745803844879,-1000.0,0.00032876,20]
[359195849,1745803844888,-1000.0,0.00032876,20]
[359195850,1745803844897,-1000.0,0.00032876,20]
[359195851,1745803844907,-1000.0,0.00032876,20]
[359195852,1745803844916,-1000.0,0.00032876,20]
[359195854,1745803844926,-1000.0,0.00032876,20]
[359195855,1745803844936,-1000.0,0.00032876,20]
[359195856,1745803844950,-1000.0,0.00032876,20]
[359195857,1745803844960,-685.67810494,0.00032876,20]
[359195858,1745803844969,-481.67275077,0.00032876,2]
[359195859,1745803844979,-389.47509869,0.00032876,2]
[359195860,1745803844989,-504.63785682,0.00032876,2]
[359195861,1745803844999,-446.67398448,0.00032876,2]
[359195862,1745803845009,-358.28075263,0.00032876,2]
[359195863,1745803845021,-492.13745018,0.00032876,2]
[359195864,1745803845030,-500.0,0.00032876,2]
[359195865,1745803845040,-495.35298576,0.00032876,2]
[359195866,1745803845050,-360.88268393,0.00032876,2]
[359195867,1745803845059,-500.0,0.00032876,2]
[359195868,1745803845069,-229.17104281,0.00032876,2]
[359195869,1745803845079,-566.15,0.00032876,2]
[359195870,1745803845089,-255.7144503,0.00032877,120]
[359195871,1745803845099,-1000.0,0.00032877,5]
[359195872,1745803845108,-2000.0,0.00032877,120]
[359195873,1745803845118,-2000.0,0.00032877,120]
[359195874,1745803845127,-2446.79,0.000329,30]
[359195875,1745803845136,-150.0,0.00032973,4]
[359195876,1745803845146,-200.0,0.00032979,120]
[359195877,1745803845155,-1000.0,0.00033,120]
[359195878,1745803845164,-160.0,0.00033,40]
[359195879,1745803845174,-1142.35,0.00033,7]
[359195880,1745803845184,-220720.64,0.00033,30]
[359195882,1745803845193,-473.941809,0.00033,2]
[359195883,1745803845202,-473.941809,0.00033,2]
[359195884,1745803845211,-151.0,0.00033,14]
[359195886,1745803845221,-151.0,0.00033,2]
[359195887,1745803845231,-268.0,0.00033,2]
[359195888,1745803845242,-268.0,0.00033,2]
[359195889,1745803845251,-151.0,0.00033,14]
[359195890,1745803845260,-403.65035211,0.00033072,11]
[359195891,1745803845270,-566.15,0.0003315,2]
[359195892,1745803845279,-1500.0,0.00033165,2]
[359195893,1745803845288,-204.85384905,0.00033233,2]
[359195894,1745803845297,-900.0,0.0003326,5]
[359195895,1745803845306,-368.74200513,0.00033288,7]
[359195896,1745803845316,-319.799999,0.000333,41]
[359195897,1745803845325,-566.15,0.00033424,2]
[359195898,1745803845335,-2000.0,0.00033425,120]
[359195899,1745803845344,-153.0,0.00033475,30]
[359195900,1745803845353,-153.0,0.00033475,30]
[359195901,1745803845363,-153.0,0.00033475,30]
[359195902,1745803845372,-153.0,0.00033475,30]
[359195903,1745803845381,-153.0,0.00033475,30]
[359195904,1745803845391,-163.4203279,0.00033475,30]
[359195905,1745803845400,-403.65035211,0.00033693,11]
[359195906,1745803845411,-566.29,0.00033698,2]
[359195907,1745803845420,-3727.16,0.000337,7]
[359195908,1745803845430,-204.85384905,0.000339,2]
[359195909,1745803845439,-2000.0,0.00033973,120]
[359195911,1745803845448,-1015.7841932,0.00034,2]
[359195912,1745803845459,-2446.79,0.00034,30]
[359195913,1745803845468,-1000.0,0.00034,120]
[359195914,1745803845477,-160.0,0.00034,43]
[359195915,1745803845487,-500.0,0.00034,30]
[359195916,1745803845497,-266.73827,0.00034,120]
[359195917,1745803845507,-200.0,0.00034,120]
[359195918,1745803845517,-1000.0,0.00034,60]
[359195919,1745803845526,-181.95627,0.00034066,2]
[359195920,1745803845535,-155.0,0.00034281,2]
[359195921,1745803845545,-403.65035211,0.00034314,11]
[359195922,1745803845555,-500.0,0.00034384,60]
[359195923,1745803845564,-263.49749,0.000344,120]
[359195924,1745803845573,-2000.0,0.00034521,120]
[359195925,1745803845582,-200.0,0.0003456,120]
[359195926,1745803845592,-204.85384905,0.00034567,2]
[359195927,1745803845601,-173.6008034,0.00034694,2]
[359195928,1745803845610,-200.0,0.000347,120]
[359195929,1745803845619,-1336.44457965,0.00034728,12]
[359195930,1745803845629,-200.0,0.00034855,120]
[359195931,1745803845640,-3143.97676046,0.0003487,4]
[359195932,1745803845649,-1200.0,0.00034904,5]
[359195933,1745803845659,-200.0,0.00034919,120]
[359195934,1745803845669,-200.0,0.00034921,120]
[359195935,1745803845679,-403.65035211,0.00034934,12]
[359195936,1745803845688,-3962.92302667,0.0003499,30]
[359195937,1745803845698,-500.0,0.00035,12]
[359195938,1745803845707,-500.0,0.00035,4]
[359195939,1745803845717,-500.0,0.00035,7]
[359195940,1745803845727,-10588.65594045,0.00035,2]
[359195941,1745803845737,-759.14378458,0.00035,7]
[359195942,1745803845749,-2000.0,0.00035,120]
[359195943,1745803845758,-2000.0,0.00035,60]
[359195944,1745803845767,-1000.0,0.00035,120]
[359195946,1745803845777,-160.0,0.00035,46]
[359195948,1745803845787,-2000.0,0.00035,3]
[359195949,1745803845796,-2000.0,0.00035,3]
[359195952,1745803845806,-100000.0,0.00035,30]
[359195955,1745803845815,-500.0,0.00035,120]
[359195957,1745803845825,-124237.41974248,0.00035,30]
[359195960,1745803845840,-93212.75621948,0.00035,30]
[359195963,1745803845853,-11946.32175997,0.00035,30]
[359195986,1745803846444,-2146.46342599,0.00035,30]
[359195987,1745803846455,-9300.0,0.00035,30]
[359196000,1745803848728,-14987.730254,0.00035,30]
[359198173,1745804744116,-304.36672951,0.00023897,2]
[359198281,1745804835082,-155.42996749,0.00023897,2]
[359198288,1745804844108,-155.059,0.00024893,2]
[359198289,1745804844129,-916.5,0.00024955,15]